bitfinex/quotes_BTCUSD_20250903
["timestamp","ask_amount","ask_price","bid_price","bid_amount"]
[1756925200383,1.51883135,112050.0,112040.0,0.00420678]
[1756925202027,1.49199651,112050.0,112040.0,0.00420678]
[1756925202257,1.51883136,112050.0,112040.0,0.00420678]
[1756925206325,1.54133136,112050.0,112040.0,0.00420678]
[1756925207824,1.39125136,112050.0,112040.0,0.00420678]
[1756925208040,1.54133136,112050.0,112040.0,0.00420678]
[1756925213239,0.17853954,112020.0,112010.0,0.07354631]
[1756925213454,1.39431479,112020.0,112010.0,0.07354631]
[1756925213691,1.39415832,112020.0,112010.0,0.07354631]
[1756925213918,0.17857142,112000.0,111990.0,0.33010215]
[1756925214126,0.54255228,112000.0,111990.0,0.25253368]
[1756925214344,0.54032581,112000.0,111990.0,0.07394631]
[1756925214767,0.54032581,112000.0,111990.0,0.17898737]
[1756925215213,0.54046676,112000.0,111990.0,0.17898737]
[1756925216091,0.54646676,112000.0,111990.0,0.17998737]
[1756925216295,0.54646676,112000.0,111990.0,0.18221971]
[1756925216936,0.55246676,112000.0,111990.0,0.18221971]
[1756925217148,0.19071237,112000.0,111990.0,0.18221971]
[1756925217354,0.19071237,112000.0,111990.0,0.58221971]
[1756925217664,0.19071237,112000.0,111990.0,0.57998737]
[1756925217875,0.55246676,112000.0,111990.0,0.57998737]
[1756925218294,0.01214095,112000.0,111990.0,0.54174176]
[1756925218679,0.01214095,112000.0,111990.0,0.56858181]
[1756925219510,0.19071237,112000.0,111990.0,0.20682742]
[1756925219832,0.01214095,112000.0,111990.0,0.20682742]
[1756925220752,0.01214095,112000.0,111990.0,0.68960508]
[1756925221391,0.01214095,112000.0,111990.0,0.78152107]
[1756925222062,0.19071237,112000.0,111990.0,0.78152107]
[1756925222211,0.19071237,112000.0,111990.0,0.69874341]
[1756925222822,0.19071237,112000.0,111990.0,0.84878341]
[1756925223016,0.19071237,112000.0,111990.0,0.44878341]
[1756925223480,0.19071237,112000.0,111990.0,0.84878341]
[1756925223881,0.01214095,112000.0,111990.0,1.33156107]
[1756925225148,0.19071237,112000.0,111990.0,0.84878341]
[1756925225903,0.01214095,112000.0,111990.0,0.84878341]
[1756925226087,0.19071237,112000.0,111990.0,0.84878341]
[1756925227541,0.19393237,112000.0,111990.0,0.84878341]
[1756925227751,0.19393237,112000.0,111990.0,0.75686742]
[1756925229056,0.19599237,112000.0,111990.0,0.75686742]
[1756925229258,0.19071237,112000.0,111990.0,0.75686742]
[1756925229877,0.19071237,112000.0,111990.0,0.57828005]
[1756925230095,0.19365237,112000.0,111990.0,0.57828005]
[1756925230459,0.19365237,112000.0,111990.0,0.75686742]
[1756925230855,0.19365237,112000.0,111990.0,0.35686742]
[1756925231457,0.19365237,112000.0,111990.0,0.57828005]
[1756925232117,0.19365237,112000.0,111990.0,0.75686742]
[1756925233469,0.19365237,112000.0,111990.0,0.42824005]
[1756925233681,0.19571237,112000.0,111990.0,0.57828005]
[1756925233911,0.19571237,112000.0,111990.0,0.42824005]
[1756925234139,0.19571237,112000.0,111990.0,0.57828005]
[1756925234389,0.67849003,112000.0,111990.0,0.02824005]
[1756925234594,0.67849003,112000.0,111990.0,0.0014]
[1756925234807,0.19571237,112000.0,111990.0,0.0014]
[1756925235023,0.67849003,112000.0,111990.0,0.0014]
[1756925246289,0.82853003,112000.0,111990.0,0.0014]
[1756925246495,0.34575237,112000.0,111990.0,0.0014]
[1756925246692,0.82853003,112000.0,111990.0,0.0014]
[1756925246943,0.67849003,112000.0,111990.0,0.0014]
[1756925247153,0.82853003,112000.0,111990.0,0.0014]
[1756925247783,0.67849003,112000.0,111990.0,0.0014]
[1756925247998,0.34369237,112000.0,111990.0,0.0014]
[1756925248209,0.19071237,112000.0,111990.0,0.18221971]
[1756925248769,0.19071237,112000.0,111990.0,0.33225971]
[1756925248977,0.19071237,112000.0,111990.0,0.33002737]
[1756925250118,0.19365237,112000.0,111990.0,0.33002737]
[1756925252055,0.19365237,112000.0,111990.0,0.15144]
[1756925252280,0.19365237,112000.0,111990.0,0.55367234]
[1756925252461,0.19365237,112000.0,111990.0,0.73002737]
[1756925252912,0.19365237,112000.0,111990.0,0.55144]
[1756925253140,0.19071237,112000.0,111990.0,0.73002737]
[1756925253317,0.19071237,112000.0,111990.0,0.33002737]
[1756925256281,0.19365237,112000.0,111990.0,0.33002737]
[1756925256484,0.19365237,112000.0,111990.0,0.15144]
[1756925256646,0.19365237,112000.0,111990.0,0.15367234]
[1756925257418,0.19571237,112000.0,111990.0,0.15367234]
[1756925257594,0.19571237,112000.0,111990.0,0.33225971]
[1756925257809,0.19071237,112000.0,111990.0,0.33002737]
[1756925258566,0.19365237,112000.0,111990.0,0.33002737]
[1756925258936,0.19365237,112000.0,111990.0,0.55144]
[1756925259473,0.19563237,112000.0,111990.0,0.55144]
[1756925261067,0.19563237,112000.0,111990.0,0.4014]
[1756925261271,0.19563237,112000.0,111990.0,0.5514]
[1756925261904,0.19563237,112000.0,111990.0,0.1514]
[1756925262386,0.19563237,112000.0,111990.0,0.57824024]
[1756925265568,0.19563237,112000.0,111990.0,0.17824024]
[1756925265981,0.19563237,112000.0,111990.0,0.58047258]
[1756925266178,0.19563237,112000.0,111990.0,0.57824024]
[1756925268983,0.19563237,112000.0,111990.0,0.17824024]
[1756925269122,0.19563237,112000.0,111990.0,0.18047258]
[1756925269335,0.19563237,112000.0,111990.0,0.43047258]
[1756925269559,0.19563237,112000.0,111990.0,0.57820024]
[1756925271291,0.19563237,112000.0,111990.0,0.42824024]
[1756925271503,0.19563237,112000.0,111990.0,0.57820024]
[1756925271771,0.19563237,112000.0,111990.0,0.02824024]
[1756925271996,0.19563237,112000.0,111990.0,0.17820024]
[1756925274114,0.19563237,112000.0,111990.0,0.02824024]
[1756925274355,0.67841003,112000.0,111990.0,0.0014]
[1756925275053,0.67241003,112000.0,111990.0,0.0004]
[1756925275198,0.67941003,112000.0,111990.0,0.0014]
[1756925275426,0.67241003,112000.0,111990.0,0.0004]
[1756925275855,0.67341003,112000.0,111990.0,0.0014]
[1756925276257,0.67741003,112000.0,111990.0,0.0024]
[1756925276639,0.67341003,112000.0,111990.0,0.0014]
[1756925277041,0.67741003,112000.0,111990.0,0.0024]
[1756925277260,0.19463237,112000.0,111990.0,0.0024]
[1756925277462,0.67741003,112000.0,111990.0,0.0024]
[1756925280347,0.19463237,112000.0,111990.0,0.0024]
[1756925280566,0.34459237,112000.0,111990.0,0.0024]
[1756925281608,0.70676331,112000.0,111990.0,0.0024]
[1756925282405,0.34459237,112000.0,111990.0,0.0024]
[1756925282610,0.70676331,112000.0,111990.0,0.0024]
[1756925283754,0.34459237,112000.0,111990.0,0.0024]
[1756925284188,0.70676331,112000.0,111990.0,0.0024]
[1756925284675,0.34455237,112000.0,111990.0,0.18098737]
[1756925284937,0.34455237,112000.0,111990.0,0.18321971]
[1756925285126,0.34455237,112000.0,111990.0,0.18098737]
[1756925286043,0.34455237,112000.0,111990.0,0.0024]
[1756925286256,0.19463237,112000.0,111990.0,0.18321971]
[1756925286462,0.19265237,112000.0,111990.0,0.54315831]
[1756925286602,0.19265237,112000.0,111990.0,0.18098737]
[1756925286809,0.19265237,112000.0,111990.0,0.54539065]
[1756925287018,0.19265237,112000.0,111990.0,0.18098737]
[1756925287234,0.19265237,112000.0,111990.0,0.18321971]
[1756925287435,0.19265237,112000.0,111990.0,0.54539065]
[1756925287665,0.19463237,112000.0,111990.0,0.36457094]
[1756925288429,0.19463237,112000.0,111990.0,0.54315831]
[1756925290292,0.19463237,112000.0,111990.0,0.36457094]
[1756925291418,0.19463237,112000.0,111990.0,0.0024]
[1756925291622,0.19463237,112000.0,111990.0,0.00463234]
[1756925293072,0.19463237,112000.0,111990.0,0.18321971]
[1756925293271,0.19463237,112000.0,111990.0,0.0024]
[1756925293472,0.19463237,112000.0,111990.0,0.36680328]
[1756925293684,0.19463237,112000.0,111990.0,0.36457094]
[1756925293944,0.19463237,112000.0,111990.0,0.0024]
[1756925294157,0.19463237,112000.0,111990.0,0.00463234]
[1756925294504,0.55680331,112000.0,111990.0,0.15228]
[1756925294705,0.91897425,112000.0,111990.0,0.0024]
[1756925296253,0.19463237,112000.0,111990.0,0.0024]
[1756925296469,0.70668331,112000.0,111990.0,0.0024]
[1756925296793,0.34451237,112000.0,111990.0,0.0024]
[1756925296950,0.70668331,112000.0,111990.0,0.0024]
[1756925298872,0.55680331,112000.0,111990.0,0.0024]
[1756925299028,0.70668331,112000.0,111990.0,0.0024]
[1756925303795,0.34451237,112000.0,111990.0,0.0024]
[1756925304039,0.19463237,112000.0,111990.0,0.00463234]
[1756925305240,0.19463237,112000.0,111990.0,0.18321971]
[1756925305444,0.19463237,112000.0,111990.0,0.18098737]
[1756925306596,0.19463237,112000.0,111990.0,0.54315831]
[1756925309558,0.19463237,112000.0,111990.0,0.0024]
[1756925309992,0.55680331,112000.0,111990.0,0.0024]
[1756925318827,0.19463237,112000.0,111990.0,0.0024]
[1756925319038,0.55680331,112000.0,111990.0,0.0024]
[1756925320184,0.55680331,112000.0,111990.0,0.15447234]
[1756925320399,0.19463237,112000.0,111990.0,0.15447234]
[1756925320694,0.19463237,112000.0,111990.0,0.33305971]
[1756925321009,0.19463237,112000.0,111990.0,0.33082737]
[1756925321340,0.19463237,112000.0,111990.0,0.15224]
[1756925321524,0.19463237,112000.0,111990.0,0.15447234]
[1756925322613,0.55680331,112000.0,111990.0,0.15447234]
[1756925322912,0.55680331,112000.0,111990.0,0.15224]
[1756925323146,0.55680331,112000.0,111990.0,0.02924051]
[1756925324377,0.91897425,112000.0,111990.0,0.0024]
[1756925324596,1.80429118,112000.0,111990.0,0.0024]
[1756925324802,1.24292925,111990.0,111980.0,0.0004]
[1756925325012,1.48464524,111990.0,111980.0,0.0004]
[1756925325227,1.50939524,111990.0,111980.0,0.0004]
[1756925325432,1.51249524,111990.0,111980.0,0.0004]
[1756925326680,1.51949524,111990.0,111980.0,0.0014]
[1756925326893,1.52349524,111990.0,111980.0,0.0024]
[1756925327101,1.51649524,111990.0,111980.0,0.0014]
[1756925327488,1.52349524,111990.0,111980.0,0.0024]
[1756925329172,1.55034305,111990.0,111980.0,0.0024]
[1756925330204,1.40054305,111990.0,111980.0,0.0024]
[1756925330414,1.55034305,111990.0,111980.0,0.0024]
[1756925330573,1.40054305,111990.0,111980.0,0.0024]
[1756925330775,1.55034305,111990.0,111980.0,0.0024]
[1756925336131,0.70623518,111990.0,111980.0,0.00396]
[1756925336334,1.07150612,111990.0,111980.0,0.00396]
[1756925336754,0.70933518,111990.0,111980.0,0.00396]
[1756925336966,1.07150612,111990.0,111980.0,0.00396]
[1756925337575,0.92170612,111990.0,111980.0,0.00396]
[1756925337848,1.07150612,111990.0,111980.0,0.00396]
[1756925338050,0.92170612,111990.0,111980.0,0.00396]
[1756925338255,1.07366612,111990.0,111980.0,0.00396]
[1756925338428,1.07150612,111990.0,111980.0,0.00396]
[1756925338846,1.07366612,111990.0,111980.0,0.00396]
[1756925339252,1.07366612,111990.0,111980.0,0.0024]
[1756925340066,0.71149518,111990.0,111980.0,0.00396]
[1756925340272,0.92386612,111990.0,111980.0,0.00396]
[1756925340480,0.56169518,111990.0,111980.0,0.0024]
[1756925340679,1.07366612,111990.0,111980.0,0.0024]
[1756925342335,0.011,111990.0,111980.0,0.63763025]
[1756925342776,0.011,111990.0,111980.0,0.81427153]
[1756925342987,0.011,111990.0,111980.0,1.21427153]
[1756925343370,0.18958737,111990.0,111980.0,0.81427153]
[1756925343589,0.18958737,111990.0,111980.0,0.93494761]
[1756925343817,0.18958737,111990.0,111980.0,1.33494761]
[1756925344347,0.011,111990.0,111980.0,1.33494761]
[1756925345618,0.011,111990.0,111980.0,1.18514761]
[1756925345823,0.18958737,111990.0,111980.0,1.33490761]
[1756925347340,0.18958737,111990.0,111980.0,1.33392761]
[1756925348002,0.011,111990.0,111980.0,0.85108059]
[1756925348214,0.011,111990.0,111980.0,1.33392761]
[1756925348631,0.18958737,111990.0,111980.0,1.33392761]
[1756925350563,0.18958737,111990.0,111980.0,1.18416761]
[1756925350728,0.011,111990.0,111980.0,1.33490761]
[1756925350938,0.011,111990.0,111980.0,1.40354761]
[1756925351921,0.011,111990.0,111980.0,1.25378761]
[1756925352122,0.011,111990.0,111980.0,1.40354761]
[1756925353000,0.18958737,111990.0,111980.0,1.40256761]
[1756925353421,0.18958737,111990.0,111980.0,1.25280761]
[1756925353611,0.67766439,111990.0,111980.0,0.02924128]
[1756925353813,0.82738439,111990.0,111980.0,0.02924128]
[1756925354176,0.34453737,111990.0,111980.0,0.02924128]
[1756925358091,0.19481737,111990.0,111980.0,0.02924128]
[1756925358309,0.19481737,111990.0,111980.0,0.21007714]
[1756925358509,0.19481737,111990.0,111980.0,0.2094046]
[1756925358923,0.19481737,111990.0,111980.0,0.03080128]
[1756925359080,0.19481737,111990.0,111980.0,0.03147382]
[1756925359483,0.19481737,111990.0,111980.0,0.21163714]
[1756925359687,0.18958737,111990.0,111980.0,0.2094046]
[1756925360080,0.19481737,111990.0,111980.0,0.2094046]
[1756925361182,0.19481737,111990.0,111980.0,0.6094046]
[1756925362495,0.19481737,111990.0,111980.0,0.7591246]
[1756925362854,0.19481737,111990.0,111980.0,0.17896128]
[1756925363502,0.19481737,111990.0,111980.0,0.02924128]
[1756925363701,0.19481737,111990.0,111980.0,0.17896128]
[1756925363852,0.19481737,111990.0,111980.0,0.3591246]
[1756925365358,0.19276737,111990.0,111980.0,0.3591246]
[1756925365535,0.18958737,111990.0,111980.0,0.3591246]
[1756925366138,0.011,111990.0,111980.0,0.3591246]
[1756925366373,0.011,111990.0,111980.0,0.8591246]
[1756925366807,0.18958737,111990.0,111980.0,0.8591246]
[1756925367231,0.18958737,111990.0,111980.0,1.2591246]
[1756925367446,0.00014095,112000.0,111990.0,0.17858737]
[1756925367665,0.00014095,112000.0,111990.0,0.82676272]
[1756925367882,0.00014095,112000.0,111990.0,0.82355038]
[1756925368159,0.18394237,112000.0,111990.0,0.71023599]
[1756925368375,0.18394237,112000.0,111990.0,0.82018336]
[1756925368552,0.18394237,112000.0,111990.0,0.84701993]
[1756925368712,0.18394237,112000.0,111990.0,0.84857993]
[1756925368925,0.01237095,112000.0,111990.0,0.84957993]
[1756925369127,0.01237095,112000.0,111990.0,0.44957993]
[1756925369775,0.19094237,112000.0,111990.0,0.44957993]
[1756925370007,0.00714095,112000.0,111990.0,0.93242695]
[1756925370603,0.00714095,112000.0,111990.0,1.33242695]
[1756925370800,0.00714095,112000.0,111990.0,1.33342695]
[1756925370939,0.01114095,112000.0,111990.0,1.33342695]
[1756925371145,0.19494237,112000.0,111990.0,0.69933993]
[1756925371346,0.19494237,112000.0,111990.0,0.84901993]
[1756925372818,0.19494237,112000.0,111990.0,0.85057993]
[1756925373277,0.19494237,112000.0,111990.0,0.84901993]
[1756925374536,0.19494237,112000.0,111990.0,0.67043256]
[1756925375296,0.19494237,112000.0,111990.0,0.84901993]
[1756925375719,0.19494237,112000.0,111990.0,0.67043256]
[1756925376067,0.19494237,112000.0,111990.0,0.84901993]
[1756925376529,0.19494237,112000.0,111990.0,0.67043256]
[1756925377314,0.19494237,112000.0,111990.0,0.27043256]
[1756925377784,0.19494237,112000.0,111990.0,0.44901993]
[1756925378370,0.19494237,112000.0,111990.0,0.27043256]
[1756925378836,0.19494237,112000.0,111990.0,0.44901993]
[1756925379482,0.19494237,112000.0,111990.0,0.27043256]
[1756925382406,0.19494237,112000.0,111990.0,0.24359599]
[1756925383867,0.19494237,112000.0,111990.0,0.09391599]
[1756925384015,0.19494237,112000.0,111990.0,0.24355599]
[1756925387939,0.19494237,112000.0,111990.0,0.09391599]
[1756925388167,0.19494237,112000.0,111990.0,0.002]
[1756925388350,0.19494237,112000.0,111990.0,0.15164]
[1756925392602,0.19494237,112000.0,111990.0,0.33401971]
[1756925392804,0.19494237,112000.0,111990.0,0.33178737]
[1756925393001,0.18971237,112000.0,111990.0,0.33178737]
[1756925393224,0.19286237,112000.0,111990.0,0.1532]
[1756925393469,0.19286237,112000.0,111990.0,0.15543234]
[1756925394294,0.19495237,112000.0,111990.0,0.15543234]
[1756925397710,0.19495237,112000.0,111990.0,0.33401971]
[1756925397913,0.19495237,112000.0,111990.0,0.33178737]
[1756925398869,0.19495237,112000.0,111990.0,0.1532]
[1756925399046,0.19495237,112000.0,111990.0,0.15543234]
[1756925399249,0.19495237,112000.0,111990.0,0.33401971]
[1756925399445,0.18971237,112000.0,111990.0,0.33178737]
[1756925400030,0.19286237,112000.0,111990.0,0.33178737]
[1756925400618,0.19495237,112000.0,111990.0,0.33178737]
[1756925401597,0.19286237,112000.0,111990.0,0.33178737]
[1756925401805,0.01114095,112000.0,111990.0,0.90655038]
[1756925402814,0.01114095,112000.0,111990.0,1.30655038]
[1756925403037,0.01114095,112000.0,111990.0,1.30753038]
[1756925403641,0.01032364,112000.0,111990.0,1.1867096]
[1756925404716,0.01032364,112000.0,111990.0,1.54873584]
[1756925404962,0.004,112000.0,111990.0,1.56967466]
[1756925405190,0.00231913,112000.0,111990.0,1.59651006]
[1756925405647,0.00231913,112000.0,111990.0,1.67670578]
[1756925406396,0.00231913,112000.0,111990.0,1.59651006]
[1756925406618,0.00231913,112000.0,111990.0,1.63774216]
[1756925407309,0.00231913,112000.0,111990.0,1.68774216]
[1756925407753,0.00231913,112000.0,111990.0,2.02774216]
[1756925408213,0.00231913,112000.0,111990.0,2.10789788]
[1756925410504,0.00231913,112000.0,111990.0,2.02770216]
[1756925410886,0.00231913,112000.0,111990.0,2.02766216]
[1756925411561,0.00231913,112000.0,111990.0,2.3896884]
[1756925411821,0.00062691,112000.0,111990.0,2.37032412]
[1756925412046,0.54950525,112050.0,112040.0,0.17850031]
[1756925412047,0.17849186,112050.0,112040.0,0.17850031]
[1756925412274,0.18055186,112050.0,112040.0,0.78423388]
[1756925412515,0.18059891,112050.0,112040.0,0.2704163]
[1756925412737,0.18368891,112050.0,112040.0,0.24147599]
[1756925413567,0.18468891,112050.0,112040.0,0.24447599]
[1756925413774,0.18468891,112050.0,112040.0,0.42298366]
[1756925413978,0.18468879,112050.0,112040.0,0.6354499]
[1756925414183,0.18468879,112050.0,112040.0,0.7850099]
[1756925414401,0.18468879,112050.0,112040.0,0.45694223]
[1756925414614,0.18568879,112050.0,112040.0,0.25147599]
[1756925414831,0.18568879,112050.0,112040.0,0.61350223]
[1756925415348,0.18568879,112050.0,112040.0,0.7920099]
[1756925415950,0.18568879,112050.0,112040.0,0.61350223]
[1756925416205,0.18568879,112050.0,112040.0,0.25147599]
[1756925416372,0.18568879,112050.0,112040.0,0.61350223]
[1756925418267,0.18568879,112050.0,112040.0,0.61346223]
[1756925418919,0.18568879,112050.0,112040.0,0.25143599]
[1756925419110,0.18568879,112050.0,112040.0,0.61346223]
[1756925422562,0.18568879,112050.0,112040.0,0.25143599]
[1756925422768,0.18568879,112050.0,112040.0,0.61346223]
[1756925423712,0.18568879,112050.0,112040.0,0.25143599]
[1756925430063,0.18568879,112050.0,112040.0,0.10191599]
[1756925430253,0.18568879,112050.0,112040.0,0.25139599]
[1756925430696,0.54771503,112050.0,112040.0,0.01]
[1756925430892,0.54771503,112050.0,112040.0,0.15948]
[1756925431107,0.54771503,112050.0,112040.0,0.01]
[1756925433409,1.27339127,112050.0,112040.0,0.01]
[1756925433854,1.36530726,112050.0,112040.0,0.01]
[1756925434284,1.00328102,112050.0,112040.0,0.01]
[1756925434958,1.15276102,112050.0,112040.0,0.01]
[1756925435179,1.00328102,112050.0,112040.0,0.01]
[1756925435397,1.15276102,112050.0,112040.0,0.01]
[1756925435794,1.00328102,112050.0,112040.0,0.01]
[1756925436018,1.15276102,112050.0,112040.0,0.01]
[1756925443561,1.15272102,112050.0,112040.0,0.01]
[1756925443968,1.51474726,112050.0,112040.0,0.01]
[1756925444422,1.58338726,112050.0,112040.0,0.01]
[1756925444850,1.610223,112050.0,112040.0,0.01]
[1756925445796,1.609223,112050.0,112040.0,0.007]
[1756925446026,0.17853954,112020.0,112010.0,0.07354631]
[1756925446193,0.69418225,112020.0,112010.0,0.07354631]
[1756925446419,0.69502578,112020.0,112010.0,0.07354631]
[1756925447171,0.17855548,112010.0,112000.0,0.40708715]
[1756925447373,0.17855548,112010.0,112000.0,0.36596314]
[1756925447574,0.17855548,112010.0,112000.0,0.36752314]
[1756925448506,0.17860251,112010.0,112000.0,0.36752314]
[1756925449208,0.18973141,112010.0,112000.0,0.18895172]
[1756925449420,0.18973141,112010.0,111990.0,1.21319428]
[1756925449421,0.17857142,112000.0,111990.0,0.54944]
[1756925449614,0.17857142,112000.0,111990.0,0.84678178]
[1756925449817,0.17857142,112000.0,111990.0,0.52031441]
[1756925449818,0.54059766,112000.0,111990.0,0.52031441]
[1756925450024,0.18164142,112000.0,111990.0,0.26975441]
[1756925450422,0.17857142,112000.0,111990.0,0.26975441]
[1756925451402,0.18057142,112000.0,111990.0,0.26975441]
[1756925451612,0.18157142,112000.0,111990.0,0.26975441]
[1756925452191,0.18057142,112000.0,111990.0,0.26975441]
[1756925452486,0.17858737,111990.0,111980.0,0.96904]
[1756925452696,0.17858737,111990.0,111980.0,1.41739986]
[1756925452906,0.17858737,111990.0,111980.0,1.01739986]
[1756925453113,0.17858737,111990.0,111980.0,1.20082278]
[1756925453309,0.17858737,111990.0,111980.0,1.3794261]
[1756925453696,0.17858737,111990.0,111980.0,1.01739986]
[1756925453910,0.17858737,111990.0,111980.0,1.3794261]
[1756925455015,0.18058737,111990.0,111980.0,1.3794261]
[1756925455222,0.18358737,111990.0,111980.0,1.3794261]
[1756925455797,0.18358737,111990.0,111980.0,1.3804061]
[1756925456011,0.005,111990.0,111980.0,1.3804061]
[1756925456460,0.18358737,111990.0,111980.0,1.3804061]
[1756925457552,0.18358737,111990.0,111980.0,1.7804061]
[1756925458727,0.18358737,111990.0,111980.0,1.7794261]
[1756925460984,0.18358737,111990.0,111980.0,2.14145234]
[1756925461223,0.18358737,111990.0,111980.0,1.7794261]
[1756925462112,0.18358737,111990.0,111980.0,1.3794261]
[1756925462562,0.18358737,111990.0,111980.0,1.7794261]
[1756925463315,0.18358737,111990.0,111980.0,1.3794261]
[1756925463537,0.18358737,111990.0,111980.0,1.01739986]
[1756925463757,0.18358737,111990.0,111980.0,1.05138278]
[1756925463972,0.18860737,111990.0,111980.0,0.68935654]
[1756925464151,0.18860737,111990.0,111980.0,1.17246223]
[1756925464453,0.18860737,111990.0,111980.0,0.56904]
[1756925464661,0.18860737,111990.0,111980.0,0.71852]
[1756925465946,0.18860737,111990.0,111980.0,0.72008]
[1756925466294,0.18860737,111990.0,111980.0,0.71852]
[1756925467490,0.18860737,111990.0,111980.0,0.56904]
[1756925468069,0.18860737,111990.0,111980.0,0.64984]
[1756925468663,0.18860737,111990.0,111980.0,0.6514]
[1756925470314,0.18860737,111990.0,111980.0,0.83000332]
[1756925470763,0.18860737,111990.0,111980.0,0.6514]
[1756925470964,0.18358737,111990.0,111980.0,1.3129189]
[1756925471249,0.18358737,111990.0,111980.0,0.83000332]
[1756925471457,0.18679737,111990.0,111980.0,0.83000332]
[1756925471688,0.18358737,111990.0,111980.0,0.83000332]
[1756925471868,0.18358737,111990.0,111980.0,0.6514]
[1756925472526,0.18358737,111990.0,111980.0,0.83000332]
[1756925473455,0.18880737,111990.0,111980.0,0.83000332]
[1756925473677,0.18880737,111990.0,111980.0,0.6514]
[1756925473877,0.18880737,111990.0,111980.0,0.64984]
[1756925474115,0.18679737,111990.0,111980.0,0.83000332]
[1756925474317,0.18358737,111990.0,111980.0,0.83000332]
[1756925474939,0.005,111990.0,111980.0,1.40581489]
[1756925475340,0.005,111990.0,111980.0,1.43265435]
[1756925475544,0.005,111990.0,111980.0,1.83265435]
[1756925476199,0.005,111990.0,111980.0,1.89689488]
[1756925476562,0.005,111990.0,111980.0,1.4139793]
[1756925476771,0.005,111990.0,111980.0,1.89591488]
[1756925477222,0.005,111990.0,111980.0,1.74647488]
[1756925477384,0.005,111990.0,111980.0,1.89591488]
[1756925478156,0.18178268,112000.0,111990.0,0.17858737]
[1756925478360,0.18379268,112000.0,111990.0,0.57483157]
[1756925478561,0.18379268,112000.0,111990.0,0.90441894]
[1756925478774,0.18379268,112000.0,111990.0,0.84834186]
[1756925478984,0.18379268,112000.0,111990.0,0.69890186]
[1756925479181,0.18379268,112000.0,111990.0,0.84834186]
[1756925479393,0.18379268,112000.0,111990.0,0.44834186]
[1756925479602,0.18378268,112000.0,111990.0,0.44834186]
[1756925480338,0.18378268,112000.0,111990.0,0.46623186]
[1756925480761,0.18378268,112000.0,111990.0,0.44834186]
[1756925480953,0.18678268,112000.0,111990.0,0.44834186]
[1756925481217,0.18678268,112000.0,111990.0,0.93125744]
[1756925481571,0.18879268,112000.0,111990.0,0.44834186]
[1756925481918,0.18879268,112000.0,111990.0,0.93125744]
[1756925482874,0.18879268,112000.0,111990.0,0.84678186]
[1756925483269,0.18879268,112000.0,111990.0,0.69734186]
[1756925483484,0.18879268,112000.0,111990.0,0.84678186]
[1756925483851,0.18879268,112000.0,111990.0,0.84834186]
[1756925485514,0.18879268,112000.0,111990.0,0.52031449]
[1756925485761,0.18879268,112000.0,111990.0,1.15267007]
[1756925485967,0.18879268,112000.0,111990.0,1.32969744]
[1756925486907,0.18879268,112000.0,111990.0,0.84678186]
[1756925493888,0.18879268,112000.0,111990.0,1.33125744]
[1756925494863,0.18879268,112000.0,111990.0,1.32969744]
[1756925495297,0.18879268,112000.0,111990.0,1.33125744]
[1756925500671,0.005,112000.0,111990.0,1.33125744]
[1756925500828,0.18866142,112000.0,111990.0,0.84834186]
[1756925501034,0.18866142,112000.0,111990.0,1.33125744]
[1756925501630,0.18866142,112000.0,111990.0,1.15267007]
[1756925501846,0.18866142,112000.0,111990.0,1.15111007]
[1756925502061,0.18866142,112000.0,111990.0,1.32969744]
[1756925502333,0.18866142,112000.0,111990.0,0.0268385]
[1756925502545,0.17858737,111990.0,111980.0,0.56464053]
[1756925502754,0.18590384,111990.0,111980.0,0.67664207]
[1756925502966,0.18367737,111990.0,111980.0,0.5004]
[1756925503378,0.18367737,111990.0,111980.0,0.6498]
[1756925503792,0.18667737,111990.0,111980.0,0.6498]
[1756925504411,0.18867737,111990.0,111980.0,0.6498]
[1756925513709,0.18867737,111990.0,111980.0,0.5004]
[1756925513931,0.18867737,111990.0,111980.0,0.6498]
[1756925516069,0.18867737,111990.0,111980.0,0.5004]
[1756925516277,0.18867737,111990.0,111980.0,0.6498]
[1756925516474,0.18867737,111990.0,111980.0,0.64976]
[1756925516697,0.18867737,111990.0,111980.0,0.65132]
[1756925517183,0.18867737,111990.0,111980.0,0.64976]
[1756925520593,0.18867737,111990.0,111980.0,0.65132]
[1756925521674,0.18867737,111990.0,111980.0,0.64976]
[1756925522251,0.18867737,111990.0,111980.0,0.5004]
[1756925524390,0.18867737,111990.0,111980.0,0.64976]
[1756925525690,0.55089908,111990.0,111980.0,0.64976]
[1756925525914,0.55089908,111990.0,111980.0,0.65132]
[1756925526644,0.55089908,111990.0,111980.0,0.64976]
[1756925528771,0.55089908,111990.0,111980.0,0.65132]
[1756925529623,0.18358737,111990.0,111980.0,0.65132]
[1756925530079,0.18861737,111990.0,111980.0,0.65132]
[1756925530636,0.18358737,111990.0,111980.0,1.01354171]
[1756925530851,0.18358737,111990.0,111980.0,1.19214503]
[1756925531150,0.005,111990.0,111980.0,1.64726273]
[1756925531362,0.005,111990.0,111980.0,0.92281931]
[1756925531529,0.005,111990.0,111980.0,1.64726273]
[1756925532284,0.005,111990.0,111980.0,1.71150326]
[1756925533204,0.18358737,111990.0,111980.0,1.71052326]
[1756925533349,0.18358737,111990.0,111980.0,1.64628273]
[1756925533959,0.005,111990.0,111980.0,1.64628273]
[1756925534486,0.005,111990.0,111980.0,2.54236497]
[1756925534708,4.703e-05,112010.0,112000.0,0.17857142]
[1756925534929,0.17860251,112010.0,112000.0,0.96571941]
[1756925535150,0.18363251,112010.0,112000.0,0.6034977]
[1756925535370,0.18363251,112010.0,112000.0,0.63270912]
[1756925535587,4.703e-05,112010.0,112000.0,1.14581083]
[1756925535773,4.703e-05,112010.0,112000.0,1.21109915]
[1756925536241,4.703e-05,112010.0,112000.0,1.61109915]
[1756925536481,0.00304703,112010.0,112000.0,1.61109915]
[1756925536702,0.00304703,112010.0,112000.0,0.88665573]
[1756925536912,0.00304703,112010.0,112000.0,1.61109915]
[1756925537093,0.00404703,112010.0,112000.0,1.61109915]
[1756925537297,0.00404703,112010.0,112000.0,1.54679083]
[1756925539586,0.00404703,112010.0,112000.0,1.94913473]
[1756925539794,0.00404703,112010.0,112000.0,2.37438187]
[1756925539999,0.00404703,112010.0,112000.0,2.42438187]
[1756925540202,0.00404703,112010.0,112000.0,2.27506187]
[1756925540423,0.00404703,112010.0,112000.0,2.42438187]
[1756925540847,0.00304703,112010.0,112000.0,2.42438187]
[1756925541139,4.703e-05,112010.0,112000.0,2.42438187]
[1756925541376,0.00104703,112010.0,112000.0,2.42438187]
[1756925541921,0.00104703,112010.0,112000.0,2.45121211]
[1756925542871,0.00104703,112010.0,112000.0,2.30189211]
[1756925543049,0.00104703,112010.0,112000.0,2.45121211]
[1756925543456,0.00104703,112010.0,112000.0,2.30189211]
[1756925543912,0.00104703,112010.0,112000.0,2.45117211]
[1756925544881,0.00104703,112010.0,112000.0,2.30189211]